Cogmind - Beta 17 @@@ ROGUE MODE // 2026.06.27 @ 18:50:53 Player: foolish jester Result: Destroyed by H-61 Shepherd with Heavy Assault Cannon Performance ------------- Evolutions (2) 1000 Regions Visited (3) 600 Robots Destroyed (42) 210 Value Destroyed (947) 947 Prototype IDs (4) 80 Alien Tech Used (0) 0 Bonus (5656) 5656 TOTAL SCORE: 8493 Bonus ------- Follower Combat Kills 90 Prayed to X0-1V1 5000 Major X0-1V1 Interference 650 Friendly Fire -84 Cogmind --------- Core Integrity 0/450 Matter 292/300 Energy 716/900 System Corruption 0% Temperature Hot (263) Movement Core (300) Ox5 Location -8/Materials Parts ------- > --- POWER (2) -------- (None) > --- PROPULSION (2) --- (None) > --- UTILITY (4) ------ Advanced Heat Sink Improved Signal Interpreter X0-1V1's Piety Tracker > --- WEAPON (3) ------- Heavy Ion Cannon Missile Launcher > --- INVENTORY (6) ---- Heat Sink High-capacity Battery (250) Light Armor Plating Improved Assault Rifle Improved Assault Rifle Enhanced Autogun Peak State ------------ > --- POWER ------------ Subdweller Power Source > --- PROPULSION ------- Light Treads Improved Treads > --- UTILITY ---------- Advanced Heat Sink Small Storage Unit Improved Signal Interpreter X0-1V1's Piety Tracker > --- WEAPON ----------- Heavy Ion Cannon Heavy Ion Cannon Heavy Ion Cannon > --- INVENTORY -------- Aluminum Leg Heat Sink High-capacity Battery Light Armor Plating Heavy Ion Cannon Improved Assault Rifle Improved Assault Rifle Enhanced Autogun Missile Launcher [Rating: 41] Favorites ----------- Power Subdweller Power Source Engine Subdweller Power Source Power Core Light Nuclear Core Propulsion Light Treads Treads Light Treads Wheel Compact Wheel Utility Small Storage Unit Device X0-1V1's Piety Tracker Storage Small Storage Unit Processor Improved Signal Interpreter Weapon Medium Laser Energy Gun Medium Laser Energy Cannon Heavy Ion Cannon Ballistic Gun Improved Assault Rifle Launcher Grenade Launcher Build | -11 -10 -10 -8 ------- Run | Yrd Mat Sub Mat Slots Evolved 4 | . . . 4 Power . | . . . . Propulsion . | . . . . Utility 2 | . . . 2 Weapon 2 | . . . 2 Parts Attached 30 | 7 5 3 15 Power 4 | 1 1 2 . Engine 3 | 1 . 2 . Core 1 | . 1 . . Reactor . | . . . . Propulsion 5 | 2 1 . 2 Treads 4 | 1 1 . 2 Leg . | . . . . Wheel 1 | 1 . . . Hover . | . . . . Flight . | . . . . Utility 7 | 2 2 . 3 Device 5 | 1 2 . 2 Storage 1 | 1 . . . Processor 1 | . . . 1 Hackware . | . . . . Protection . | . . . . Artifact . | . . . . Weapon 14 | 2 1 1 10 Energy Gun 4 | 2 . . 2 Energy Cannon 6 | . . . 6 Ballistic Gun 2 | . . 1 1 Ballistic Cannon . | . . . . Launcher 2 | . 1 . 1 Special Weapon . | . . . . Impact Weapon . | . . . . Slashing Weapon . | . . . . Piercing Weapon . | . . . . Special Melee Weapon . | . . . . Unidentified Prototypes 3 | . 1 . 2 Parts Lost 13 | . 1 3 9 Power 3 | . . 1 2 Propulsion 5 | . . 1 4 Utility 2 | . 1 . 1 Weapon 3 | . . 1 2 Highest Loss Streak 5 | . 1 3 5 To Critical Strikes 1 | . . . 1 Average Backups 7 | 4 7 7 8 Power . | 1 1 . . Propulsion 3 | 2 3 3 2 Utility 1 | . . . 1 Weapon 2 | . 1 2 4 Tool/Special . | . . . . Unused Backups 9 | . 2 . 7 Power 2 | . 2 . . Propulsion 3 | . . . 3 Utility 2 | . . . 2 Weapon 2 | . . . 2 Tool/Special . | . . . . Average Slot Usage (%) 92 | . 94 96 87 Engine 8 | . 9 4 12 Core 4 | . 4 10 . Treads 13 | . 13 13 13 Wheel 10 | . 14 14 3 Device 13 | . 9 14 17 Storage 12 | . 14 14 9 Processor 2 | . . . 7 Energy Gun 13 | . 26 9 4 Energy Cannon 5 | . . . 16 Ballistic Gun 2 | . . 3 3 Launcher 4 | . 2 10 . Peak Build Rating 41 | 9 22 23 41 Average Rating 21 | 5 9 21 35 On Entrance 13 | . 9 22 23 Avg Prop Armor Cover (%) 7 | 3 12 3 5 Naked Turns . | . . . . Heaviest Build 36 | 14 16 17 36 Greatest Support 43 | 20 20 20 43 Greatest Overweight (x) 5 | 4 . 2 5 Average Overweight (x) . | . . . . Largest Inventory Capacity 9 | 8 8 9 9 Average Capacity 8 | 7 8 8 8 Most Carried 9 | 8 8 9 9 Average Carried 7 | 4 7 7 8 Final Capacity 9 | 8 8 9 6 Final Carried 8 | 7 8 6 6 Class Distribution -------------------- 80% | Mutant 10% | Skirmisher 9% | Gunner Dominant Class ---------------- Mutant | -10/Materials Mutant | -10/Subcaves Mutant | -8/Materials Resources | -11 -10 -10 -8 ----------- Run | Yrd Mat Sub Mat Matter Collected 792 | 203 140 156 293 Remotely . | . . . . Salvage Created 1333 | 146 451 96 640 Parts 86 | 12 28 7 39 Haulers Intercepted 1 | . . . 1 Recyclers Shooed 2 | 1 1 . . Parts Field Recycled . | . . . . Retrieved Matter . | . . . . Parts Self-Destructed 8 | . . 8 . Prevented . | . . . . Parts Restored . | . . . . Kills | -11 -10 -10 -8 ------- Run | Yrd Mat Sub Mat Combat Hostiles Destroyed 26 | . 12 3 11 Guns 7 | . 6 . 1 Cannons 8 | . . . 8 AOE 10 | . 6 3 1 Classes Destroyed 12 | 3 3 1 5 Worker 4 | 1 1 . 2 Builder 1 | . . . 1 Tunneler 3 | 3 . . . Hauler 1 | . . . 1 Recycler 5 | 1 2 . 2 Watcher 1 | . 1 . . Swarmer 9 | . 6 . 3 Grunt 13 | . 6 3 4 Duelist 1 | . . . 1 Sentry 2 | . . . 2 Specialist 1 | . . . 1 Zionite 1 | . . 1 . Best Kill Streak 6 | 3 6 3 5 Combat Bots Only 4 | . 3 3 4 Max Kills in Single Turn 4 | 1 4 1 3 Gunslinging . | . . . . Exploded 2 | . 2 1 1 Melee . | . . . . Uniques/NPCs Destroyed . | . . . . Combat | -11 -10 -10 -8 -------- Run | Yrd Mat Sub Mat Hostile Shots Fired 142 | . 35 16 91 Missed 31 | . 9 3 19 Hits 111 | . 26 13 72 Melee 1 | . . . 1 Projectile 110 | . 26 13 71 Critical Strikes 6 | . . . 6 Damage Taken 1963 | . 270 303 1390 Core 590 | . 62 53 475 Absorbed by Shields . | . . . . Core Remaining (%) 63 | 100 . 27 . Volleys Fired 64 | 8 22 10 24 Largest 3 | 2 2 1 3 Hottest 197 | 90 90 30 197 Shots Fired 130 | 16 37 10 67 Gun 55 | 16 30 1 8 Cannon 58 | . . . 58 Launcher 17 | . 7 9 1 Special . | . . . . Kinetic 1 | . . 1 . Thermal 112 | 16 30 . 66 Explosive 17 | . 7 9 1 Electromagnetic . | . . . . Robot Hit Streak 7 | 4 5 7 6 Robot Miss Streak 2 | 2 2 1 2 Penetration Max . | . . . . Secondary Targets 1 | . 1 . . Max Gunslinging Chain 1 | . 1 . . Shots Hit Robots 71 | 8 22 6 35 Core Hits 67 | 6 24 7 30 Critical Kills . | . . . . Critical Parts Destroyed . | . . . . Critical Strikes 2 | . 2 . . Burn 2 | . 2 . . Melee Attacks . | . . . . Impact . | . . . . Slashing . | . . . . Piercing . | . . . . Sneak Attacks . | . . . . Combat Hostiles . | . . . . Follow-up Attacks . | . . . . Damage Inflicted 2589 | 97 678 546 1268 Guns 476 | 97 246 15 118 Cannons 819 | . . . 819 Explosions 1291 | . 432 531 328 Melee . | . . . . Ramming 3 | . . . 3 Kinetic 15 | . . 15 . Thermal 1286 | 97 252 . 937 Explosive 1092 | . 233 531 328 Electromagnetic 193 | . 193 . . Impact . | . . . . Slashing . | . . . . Piercing . | . . . . Highest Corruption 1 | . . . 1 Average Corruption 1 | . . . 1 Corruption Purged . | . . . . Corruption Blocked . | . . . . Overload Shots . | . . . . Overflow Damage 15 | . . . 15 Projectiles 15 | . . . 15 Explosions . | . . . . Melee . | . . . . Knockbacks . | . . . . Impact . | . . . . Kinetic . | . . . . Secondary . | . . . . Self-Inflicted Damage 124 | . 48 33 43 Shots 8 | . 2 5 1 Rammed 1 | . . . 1 Targets Rammed 2 | . . . 2 Kicked . | . . . . Crushed 1 | . . . 1 Highest Temperature 695 | 90 90 . 695 Average Temperature 137 | 40 43 . 214 Received Heat Transfer 423 | . 15 39 369 Effects 16 | . . . 16 Shutdowns 3 | . . . 3 Energy Bleed 1 | . . . 1 Matter Decay 1 | . . . 1 Short Circuit 2 | . . . 2 Damage (major) 8 | . . . 8 Damage (core) 1 | . . . 1 Siege Activations . | . . . . Martial Activations . | . . . . Shielding Activations . | . . . . Robots Disrupted . | . . . . Combat Hostiles . | . . . . Robots Corrupted . | . . . . Combat Hostiles . | . . . . Parts Fried . | . . . . Impact Corruptions . | . . . . Robots Melted . | . . . . Combat Hostiles . | . . . . Parts Melted 5 | 1 2 . 2 Heat Transferred 2557 | 284 830 . 1443 Parts Sabotaged . | . . . . Parts Stolen . | . . . . Parts Stripped . | . . . . Power Chain Reactions 2 | . 2 . . Alert | -11 -10 -10 -8 ------- Run | Yrd Mat Sub Mat Maximum Alert Level 1 | . 1 . 1 Low Security (%) 93 | 100 84 . 99 Level 1 6 | . 15 . . Level 2 . | . . . . Level 3 . | . . . . Level 4 . | . . . . Level 5 . | . . . . High Security . | . . . . Max Security . | . . . . Peak Influence 321 | 10 321 . 210 Initial 3 | . 3 . . Average 76 | 2 116 . 56 Influence Increases 1095 | 25 487 60 523 Destroy 0b10 Robot/C 520 | . 240 60 220 Destroy 0b10 Robot/NC 80 | 25 20 . 35 Destroy Leader 86 | . 52 . 34 Successful Hack 5 | . 5 . . Disable Machine 105 | . 105 . . Destroy Structure 47 | . 20 . 27 Lose Combat Pursuer 150 | . 45 . 105 Miscellaneous 102 | . . . 102 Influence Decreases 905 | 20 179 373 333 Entered New Map 153 | . 2 151 . Time Decay 608 | 20 167 198 223 Lost Part 120 | . 10 20 90 Lost Ally 24 | . . 4 20 Squads Dispatched 5 | . 3 . 2 Investigation 2 | . 2 . . Extermination . | . . . . Reinforcement 3 | . 1 . 2 Assault . | . . . . Garrison . | . . . . Intercept . | . . . . Searches Triggered . | . . . . Construction Impeded . | . . . . Haulers Reinforced . | . . . . Active Scanning Responses . | . . . . Cargo Convoy Interrupts . | . . . . Stealth | -11 -10 -10 -8 --------- Run | Yrd Mat Sub Mat Distress Signals 1 | . . . 1 Communications Jammed . | . . . . Distress Signals . | . . . . Times Spotted 44 | . 16 8 20 Peak Tracking Total 9 | . 4 4 9 Tactical Retreats 4 | . 2 . 2 Traps | -11 -10 -10 -8 ------- Run | Yrd Mat Sub Mat Traps Triggered 2 | . 2 . . Indirectly . | . . . . Trap Hack Attempts . | . . . . Triggered . | . . . . Disarmed . | . . . . Reprogrammed . | . . . . Reused . | . . . . Traps Extracted . | . . . . Installed . | . . . . Triggered . | . . . . Machines | -11 -10 -10 -8 ---------- Run | Yrd Mat Sub Mat Machines Disabled 7 | . 7 . . Max in Single Turn 4 | . 4 . . Machines Repaired . | . . . . Machines Dismantled . | . . . . Machines Sabotaged . | . . . . Overloaded Fab Kills . | . . . . Hacking | -11 -10 -10 -8 --------- Run | Yrd Mat Sub Mat Machines Accessed 5 | . 4 . 1 Terminals 4 | . 3 . 1 Fabricators . | . . . . Repair Stations . | . . . . Recycling Units 1 | . 1 . . Scanalyzers . | . . . . Garrison Access . | . . . . Total Hacks 13 | . 9 . 4 Successful 5 | . 4 . 1 Failed 8 | . 5 . 3 Catastrophic . | . . . . Database Lockouts . | . . . . Manual 15 | . 11 . 4 Terminals 11 | . 7 . 4 Fabricators . | . . . . Repair Stations . | . . . . Recycling Units 2 | . 2 . . Scanalyzers . | . . . . Garrison Access . | . . . . Terminal Hacks 1 | . 1 . . Robot Analysis 1 | . 1 . . Fabricator Hacks . | . . . . Repair Station Hacks . | . . . . Recycling Unit Hacks 1 | . 1 . . Retrieve Components 1 | . 1 . . Scanalyzer . | . . . . Garrison Access Hacks . | . . . . Unauthorized Hacks 3 | . 2 . 1 Terminals 3 | . 2 . 1 Assimilate 1 | . 1 . . Botnet 2 | . 1 . 1 Fabricators . | . . . . Repair Stations . | . . . . Recycling Units . | . . . . Scanalyzers . | . . . . Garrison Access . | . . . . Data Cores Recovered . | . . . . Used . | . . . . Hacking Detections 2 | . 2 . . Full Trace Events 2 | . 2 . . Feedback Events . | . . . . Feedback Blocked . | . . . . Robot Schematics Acquired . | . . . . Robots Built . | . . . . Authchips . | . . . . Time . | . . . . Total Robot Build Rating . | . . . . Part Schematics Acquired . | . . . . Parts Built . | . . . . Authchips . | . . . . Time . | . . . . Total Part Build Rating . | . . . . Part Studies Acquired . | . . . . Parts Repaired . | . . . . Time . | . . . . Parts Recycled . | . . . . Recycled Matter . | . . . . Retrieved Matter . | . . . . Retrieved Components 7 | . 7 . . Parts Scanalyzed . | . . . . Part Schematics Acquired . | . . . . Parts Damaged . | . . . . Bothacking | -11 -10 -10 -8 ------------ Run | Yrd Mat Sub Mat Used RIF Installer . | . . . . Robots Hacked . | . . . . Non-combat . | . . . . Combat . | . . . . Robot Hacks Applied . | . . . . Relay Couplers Released . | . . . . Fabnet Peak Effective % . | . . . . Robots Rewired . | . . . . Allies Hacked . | . . . . Hacks Repelled . | . . . . Allies | -11 -10 -10 -8 -------- Run | Yrd Mat Sub Mat Total Allies 2 | . . 2 . Largest Group 2 | . . 2 1 Highest-Rated Group 16 | . . 16 8 Highest-Rated Ally 8 | . . 8 8 Total Orders . | . . . . Ally Attacks 26 | . . 23 3 Total Damage 258 | . . 235 23 Kills 4 | . . 3 1 Allies Corrupted . | . . . . Allies Melted . | . . . . X0-1V1 Amusement Gains 77 | . 12 . 65 Good Acts 6 | . . 4 2 Bad Acts 6 | . . 3 3 Intel | -11 -10 -10 -8 ------- Run | Yrd Mat Sub Mat Active Infowar (turns) 549 | 14 306 . 229 Terrain 268 | 14 25 . 229 Seismic 281 | . 281 . . Robot Analysis Total 1 | . 1 . . Derelict Logs Recovered . | . . . . Drone Launches . | . . . . Drone Recoveries . | . . . . Exploration | -11 -10 -10 -8 ------------- Run | Yrd Mat Sub Mat Turns Passed 1856 | 124 554 574 604 Spaces Moved 999 | 51 325 343 280 Core 23 | 19 . 2 2 Treads 660 | 32 58 341 229 Legs . | . . . . Wheels 316 | . 267 . 49 Hover . | . . . . Flight . | . . . . Fastest Speed 50 | 50 100 150 115 Average Speed 146 | 156 110 159 170 Slowest Speed 300 | 250 160 160 300 Overloaded Moves . | . . . . Propulsion Burnouts . | . . . . Robots Hopped . | . . . . Potential Cave-ins . | . . . . Cave-ins Triggered . | . . . . Exploration Rate (%) 23 | 4 47 28 16 Regions Visited 3 Branch Regions 1 Pre-discovered Areas 1 | . . 1 . Known Exits Taken . | . . . . Unknown Exits Taken 3 | 1 1 1 . Scrap Searched . | . . . . Spaces Dug 10 | . 8 . 2 Terrain Destroyed 130 | . 36 62 32 Melee . | . . . . Projectile 18 | . . . 18 AOE 112 | . 36 62 14 Terrain Rammed . | . . . . Walls Destroyed . | . . . . Machines Disabled . | . . . . Actions | -11 -10 -10 -8 --------- Run | Yrd Mat Sub Mat Total 1275 | 79 484 359 353 Wait 123 | . 116 . 7 Move 996 | 50 324 342 280 Hop . | . . . . Pick Up 42 | 14 9 2 17 Fast Attach . | . . . . Attach 24 | 7 3 4 10 Detach . | . . . . Swap 11 | . 5 . 6 Drop 13 | . 5 1 7 Fire 64 | 8 22 10 24 Melee . | . . . . Ram . | . . . . Kick . | . . . . Crush 2 | . . . 2 Escape Stasis . | . . . . Rewire . | . . . . Trap . | . . . . Miscellaneous . | . . . . Route ------- -11/Scrapyard -10/Materials (discovered 2 exits: [*Min] / [*Sub]) -10/Subcaves -8/Materials History --------- Turn | Location | Event 7 | -11/Scrapyard | Discovered new exit (range 15) 125 | -11/Scrapyard | Entered Materials 181 | -10/Materials | Discovered new exit (range 13) 304 | -10/Materials | Build established: Mutant 616 | -10/Materials | Made a sacrifice at D.C.S.S. Altar Unit 617 | -10/Materials | Core integrity fell below 50% 669 | -10/Materials | Discovered new exit (range 7) 679 | -10/Materials | Entered Subcaves 737 | -10/Subcaves | Learned location of Zion (-6) 737 | -10/Subcaves | Met a Zionite searching for "candidates" 894 | -10/Subcaves | Inventory capacity permanently improved by X0-1V1 (+1; -100 max core) 1027 | -10/Subcaves | X0-1V1 sent hostile G-34 Mercenary (x3) 1087 | -10/Subcaves | X0-1V1 mutated your Weapon slot to Power slot 1093 | -10/Subcaves | Disturbed a concealed Subdweller 1099 | -10/Subcaves | X0-1V1 sent allied G-34 Mercenary (x2) 1147 | -10/Subcaves | Lost 3 parts (1p1n1w) 1237 | -10/Subcaves | Discovered new exit (range 11) 1253 | -10/Subcaves | Entered Materials 1253 | -8/Materials | Accompanied by 1 ally 1253 | -8/Materials | Evolved 4 slots: Utility x2, Weapon x2 1292 | -8/Materials | X0-1V1 added 0b10 threat records associated with you (minor) 1467 | -8/Materials | X0-1V1 upgraded hostiles (x1) 1539 | -8/Materials | Lost 4 parts (1p2n1w) 1841 | -8/Materials | Core integrity fell below 50% 1855 | -8/Materials | Core integrity fell below 20% 1857 | -8/Materials | Destroyed by H-61 Shepherd with Heavy Assault Cannon Last Messages --------------- 01840_ Sub. Power Source destroyed. 01843_ L-31 Rogue destroyed. 01846_ Critical hit (Burn: +37). 01846_ G-47 Trooper destroyed. 01847_ Penetrated by Slug. 01847_ Lgt. Treads destroyed. 01850_ Penetrated by Slug. 01853_ Critical hit (Destroy). 01853_ Hvy. Ion Cannon destroyed. 01854_ Critical hit (Burn: +37). 01854_ U-05 Engineer builds a Wall. 01854_ G-47 Trooper destroyed. 01854_ U-05 Engineer destroyed. 01854_ X-62 Marksman destroyed. 01855_ Penetrated by Slug. 01855_ Imp. Treads destroyed. 01855_ Sml. Storage Unit destroyed. 01855_ Knocked back. 01856_ Penetrated by Slug. 01857_ X0-1V1 chuckles heartily! Map ----- +----------------------------------------------------+ | ??? ^ [*%=** #????? ??? ????# | | ??? =[%= #?#???? ?? ??? + | | ???????# ##### ######### #####?? ???????# | | ??????????????## ########## ==#??"?"?????# | | ???????????????# # = # ==#? ?"????"?# | | ???????????????# + """ # !!#???????"? ? | | ???????????????# # """ # !!#????? ?? ? | | ???????????????# # """ ! # ][]#?? ????? ?? | | ???????????????# # # #???#?#?##?? | | ???????????????# #?""" # #####??????????? | | ???????????????# #?""" # ##?#???????????? | | ???????????????# #??"" # #?#??????????#?? | | ???????????????# #??? # #??????????????? | | ???????????????# ########## ###????????????? | | ???????????????#] # """ # #????????????? | | ???????????????# # "R" # #????????????? | | ???????????????# # " " + #????????????? | | ???????????????# # # #????????????? | | ???????????????# # [ / # #????????????? | | ???????????????# # ###+####???????????? | | ???????????????# # !# #???????????? | | ???????????????# # """ #""" #???????????? | | ???????????????# # """ #""" #???????????? | | ?????????????###%=# """ #""" #???????????? | | ?????????????# *# % #""" #???????????? | | ????????????## |%*%@ # #???????????? | | ????????????# !%%]= ########???????????? | | ????????????## g%g!######??????????????????? | | ?????????????## x=[ ???????????????????????? | | ??????????????# H ##???????????????????????? | | ??????????????# g#?????????????????????????? | | ?????????????# ??????????????????????????? | | ???????????? ??????????????????????????? | | ??????????? ???????????????????????????? | | ?????????? ???????????????????????????? | | ?????????#;### ???????????????????????????? | | ????????? ???## ????????????????????????????? | | ????????"?????# ????????????????????????????? | | ??????????????#?????????????????????????????? | | ????????????????????????????????????????????? | | ????????????????????????????????????????????? | | ????????????????????????????????????????????? | | ????????????????????????????????????????????? | | ????????????????????????????????????????????? | | ????????????????????????????????????????????? | | ????????????????????????????????????????????? | | ????????????????????????????????????????????? | | ????????????????????????????????????????????? | | ????????????????????????????????????????????? | | ????????????????????????????????????????????? | +----------------------------------------------------+ Best States ------------- Heat Dissipation 50 Energy Generation 20 Energy Capacity 1025 Matter Stores 300 Matter Capacity 300 Sight Range 16 Terrain Scan Range 16 Terrain Scan Density 10 Evasion (%) 40 Recoil Reduction 2 Item Schematics ----------------- None Robot Schematics ------------------ None Fabricated ------------ Nothing Repaired ---------- Nothing Studied --------- None Alien Tech Used ----------------- None Achievements -------------- Chaos Is Inevitable Challenges ------------ None Game ------ Seed MultitargetingClaymoresArray Manual? 0 Play Time 00:19:32 Cumulative 15.4 hours Start 2026.06.27 @ 18:33:53 End 2026.06.27 @ 18:50:53 Sessions 1 Manual Loads 0 Difficulty Rogue Special Mode None Game No. 42 Rogue 42 Adventurer 0 Explorer 0 Win Type - Total 0 Types 0/0/0/0/0/0/0/0/0/0 Lore% 10 Gallery% 18 Achievement% 16 Wizard Run 0 Options --------- Layout 1 ASCII 0 Keyboard 0 Movement Numpad Keybinds 0 Fullscreen 1 Font 24/Smallcaps Map View 76x35 Zoom Use 0% Tactical HUD 1 Map Filters NONE Filters NONE Steam 1 RUN: d65c2a4b-1b7a-444f-b985-b9e23a7ff058